bitfinex/quotes_SOLUSD_20250904
["timestamp","ask_amount","ask_price","bid_price","bid_amount"]
[1756944002818,0.06,211.07,211.02,0.03]
[1756944005834,0.06,211.07,211.02,1.92910979]
[1756944006521,0.06,211.07,211.02,1.96910979]
[1756944006721,0.06,211.07,211.02,1.92910979]
[1756944008141,0.06,211.07,211.02,0.03]
[1756944012040,0.67,211.06,211.02,0.03]
[1756944012427,4.73821369,211.05,211.02,0.03]
[1756944012624,0.67,211.06,211.02,0.03]
[1756944012831,0.06,211.07,211.02,0.03]
[1756944012832,0.67,211.05,211.02,0.03]
[1756944013232,0.67,211.04,211.02,0.03]
[1756944013546,4.79782088,211.07,211.02,0.03]
[1756944013753,0.67,211.06,211.02,0.03]
[1756944014259,0.67,211.05,211.02,0.03]
[1756944014441,0.67,211.04,211.02,0.03]
[1756944014943,0.06,211.07,211.02,13.66559401]
[1756944015147,0.06,211.07,211.03,0.32432314]
[1756944015346,0.06,211.07,211.04,0.04]
[1756944015518,0.06,211.07,211.04,13.63559401]
[1756944016155,0.06,211.07,211.06,4.73798919]
[1756944016826,0.06,211.07,211.06,6.63682853]
[1756944021549,0.06,211.07,211.06,20.55674568]
[1756944021755,0.06,211.07,211.06,20.51674568]
[1756944024247,0.06,211.07,211.06,20.54674568]
[1756944026136,0.73,211.07,211.06,6.66682853]
[1756944028359,0.06,211.07,211.06,6.66682853]
[1756944032052,0.06,211.07,211.06,20.54674568]
[1756944032960,0.06,211.07,211.06,6.66682853]
[1756944033276,0.73,211.07,211.06,1.92883934]
[1756944035969,0.73,211.07,211.06,0.03]
[1756944038249,0.06,211.07,211.06,0.03]
[1756944038658,0.06,211.07,211.06,13.94991715]
[1756944040350,0.06,211.07,211.06,50.78991715]
[1756944040572,0.06,211.07,211.06,55.52790634]
[1756944041749,0.06,211.08,211.06,55.52790634]
[1756944042056,0.06,211.08,211.07,0.04]
[1756944044876,0.06,211.08,211.07,15.81812571]
[1756944046868,0.06,211.08,211.07,20.55589043]
[1756944047476,0.06,211.08,211.07,99.15589043]
[1756944047987,0.06,211.09,211.08,13.87991715]
[1756944048160,0.06,211.1,211.08,14.48842198]
[1756944048360,0.06,211.11,211.1,39.87991715]
[1756944048559,0.86,211.17,211.11,0.14216157]
[1756944048756,0.86,211.17,211.11,13.91991715]
[1756944048994,0.86,211.17,211.11,18.65678418]
[1756944049190,0.2,211.17,211.15,0.28432314]
[1756944049366,0.2,211.17,211.16,50.71991715]
[1756944049774,0.2,211.17,211.16,64.95107865]
[1756944050280,0.86,211.17,211.16,64.95107865]
[1756944050876,0.86,211.17,211.16,69.68682405]
[1756944051888,0.2,211.17,211.16,69.68682405]
[1756944053593,0.86,211.17,211.16,28.11107865]
[1756944053765,0.86,211.17,211.16,64.95107865]
[1756944056067,0.86,211.17,211.16,51.0711615]
[1756944058467,0.86,211.17,211.16,51.0511615]
[1756944063092,0.86,211.17,211.16,14.2311615]
[1756944063499,0.86,211.17,211.16,51.0511615]
[1756944065492,0.86,211.17,211.16,14.2311615]
[1756944065703,0.86,211.17,211.16,36.82]
[1756944065993,0.86,211.17,211.16,38.71802842]
[1756944067700,0.86,211.17,211.16,1.89802842]
[1756944070097,0.86,211.17,211.13,26.0]
[1756944070398,0.66,211.16,211.15,4.79440134]
[1756944073589,0.66,211.16,211.13,62.82]
[1756944073802,0.68,211.15,211.13,62.82]
[1756944074104,0.2,211.17,211.13,62.82]
[1756944074282,0.68,211.15,211.14,4.73532975]
[1756944081912,0.68,211.15,211.14,9.47152374]
[1756944083013,0.2,211.17,211.14,9.47152374]
[1756944083309,0.88,211.17,211.15,36.82]
[1756944084117,0.88,211.17,211.15,43.45398575]
[1756944084415,0.88,211.17,211.15,41.55595733]
[1756944084607,0.88,211.17,211.16,4.73462434]
[1756944085000,0.2,211.17,211.16,4.73462434]
[1756944085997,0.88,211.17,211.16,41.55462434]
[1756944086605,0.2,211.17,211.16,46.29036974]
[1756944090622,0.2,211.17,211.16,60.17028689]
[1756944090819,0.2,211.17,211.16,60.21028689]
[1756944092319,0.2,211.17,211.16,60.17028689]
[1756944092730,0.2,211.17,211.16,60.21028689]
[1756944092930,0.2,211.17,211.16,60.17028689]
[1756944093228,0.2,211.17,211.16,60.21028689]
[1756944093812,0.2,211.17,211.16,60.17028689]
[1756944109330,0.91,211.17,211.16,60.17028689]
[1756944109656,0.91,211.17,211.16,60.13028689]
[1756944111561,0.91,211.17,211.16,9.47036974]
[1756944111740,0.91,211.17,211.12,0.03]
[1756944111949,5.64558317,211.17,211.11,1.89847884]
[1756944112150,4.93558317,211.17,211.11,1.89847884]
[1756944112354,0.71,211.16,211.09,36.81]
[1756944112552,0.71,211.16,211.1,1.89856895]
[1756944112744,0.71,211.15,211.1,1.89856895]
[1756944112934,0.71,211.14,211.1,1.89856895]
[1756944113134,0.71,211.13,211.1,1.89856895]
[1756944113334,0.71,211.12,211.1,1.89856895]
[1756944113548,0.71,211.11,211.1,1.89856895]
[1756944115053,5.44686703,211.11,211.09,0.03]
[1756944115856,0.71,211.11,211.09,0.03]
[1756944116434,5.44696533,211.11,211.07,0.03]
[1756944116638,5.44696533,211.11,211.08,1.8987492]
[1756944116841,5.44696533,211.11,211.07,0.03]
[1756944116842,0.71,211.1,211.07,0.03]
[1756944118058,5.4472327,211.1,211.07,0.03]
[1756944123460,13.59559401,211.09,211.07,0.03]
[1756944123765,2.1840643,211.08,211.07,0.03]
[1756944123967,7.63160456,211.08,211.07,0.03]
[1756944124346,5.44754026,211.08,211.07,0.03]
[1756944124547,42.24754026,211.08,211.07,0.03]
[1756944125945,0.71,211.08,211.07,0.03]
[1756944128166,5.44754026,211.08,211.07,0.03]
[1756944130037,5.44754026,211.08,211.06,0.03]
[1756944130855,41.53776472,211.07,211.06,0.03]
[1756944131366,42.24776472,211.07,211.06,0.03]
[1756944131948,5.44776472,211.07,211.06,0.03]
[1756944132275,42.24776472,211.07,211.06,0.03]
[1756944134884,54.37649966,211.07,211.03,0.03]
[1756944135054,26.28432314,211.04,210.98,0.03]
[1756944135256,36.8,211.03,210.98,0.03]
[1756944135580,37.46,211.03,210.98,0.03]
[1756944135875,0.66,211.03,210.98,0.03]
[1756944136046,36.8,211.02,210.98,0.03]
[1756944136465,39.36010213,211.02,210.98,0.03]
[1756944136873,44.09898943,211.02,210.98,0.03]
[1756944138583,42.1988873,211.02,210.98,0.03]
[1756944139583,0.28432314,211.0,210.98,0.03]
[1756944139785,0.28432314,211.0,210.92,0.03]
[1756944139786,0.28432314,210.97,210.92,0.03]
[1756944139984,26.28432314,210.95,210.92,0.03]
[1756944140289,13.87991715,210.94,210.92,0.03]
[1756944140475,76.67991715,210.93,210.92,0.03]
[1756944140668,77.33991715,210.93,210.92,0.03]
[1756944140866,37.46,210.93,210.92,0.03]
[1756944141876,42.2009093,210.93,210.92,0.03]
[1756944143769,42.48523244,210.93,210.92,0.03]
[1756944144078,5.68523244,210.93,210.92,0.03]
[1756944144413,31.4009093,210.93,210.92,0.03]
[1756944144561,68.2009093,210.93,210.92,0.03]
[1756944146679,68.2009093,210.93,210.9,0.1]
[1756944146680,26.0,210.9,210.89,0.03]
[1756944146895,76.69991715,210.9,210.89,0.03]
[1756944147062,79.26146454,210.9,210.89,0.03]
[1756944147250,99.26146454,210.9,210.89,0.03]
[1756944147455,37.76432314,210.9,210.89,0.03]
[1756944147676,63.48,210.9,210.89,0.03]
[1756944148269,68.22158368,210.9,210.89,0.03]
[1756944151595,36.82,210.9,210.89,0.03]
[1756944152777,4.74134313,210.92,210.89,0.03]
[1756944152985,36.82,210.91,210.89,0.03]
[1756944153300,4.74093246,210.93,210.89,0.28]
[1756944153502,4.74065669,210.95,210.9,0.25]
[1756944153799,4.74065669,210.95,210.89,0.03]
[1756944153800,36.82,210.94,210.89,0.03]
[1756944154300,0.66,210.93,210.89,0.03]
[1756944154504,36.82,210.92,210.89,0.03]
[1756944154669,42.221353,210.92,210.89,0.03]
[1756944155288,41.561353,210.92,210.89,0.03]
[1756944156896,36.82,210.92,210.89,0.03]
[1756944157101,41.56114863,210.92,210.89,0.03]
[1756944157399,42.22114863,210.92,210.89,0.03]
[1756944157774,0.66,210.91,210.89,0.03]
[1756944158077,36.82,210.9,210.89,0.03]
[1756944158478,37.48,210.9,210.89,0.03]
[1756944158869,42.22158368,210.9,210.89,0.03]
[1756944162703,41.56158368,210.9,210.89,0.03]
[1756944166915,42.22158368,210.9,210.89,0.03]
[1756944167103,41.56158368,210.9,210.89,0.03]
[1756944167606,42.22158368,210.9,210.89,0.03]
[1756944168500,41.56158368,210.9,210.89,0.03]
[1756944168883,42.22158368,210.9,210.89,0.03]
[1756944170706,4.80132684,210.92,210.89,0.03]
[1756944170913,0.06,210.92,210.9,0.25]
[1756944171207,0.06,210.92,210.91,0.25]
[1756944171713,0.06,210.95,210.93,26.0]
[1756944171918,0.06,210.95,210.94,0.19]
[1756944172714,0.06,210.95,210.94,30.93068455]
[1756944172889,0.06,210.95,210.94,44.8106017]
[1756944173086,0.06,210.95,210.94,59.05798375]
[1756944173289,0.06,210.97,210.95,13.87991715]
[1756944173489,1e-08,210.97,210.95,14.63877232]
[1756944173693,1e-08,210.97,210.96,0.19]
[1756944176310,1e-08,210.97,210.96,18.81015226]
[1756944176500,1e-08,210.97,210.96,38.81015226]
[1756944177085,1e-08,211.02,211.01,13.59559401]
[1756944177287,1e-08,211.02,211.01,51.28861057]
[1756944177509,1e-08,211.02,211.01,51.47861057]
[1756944178411,1e-08,211.02,211.01,19.37772246]
[1756944178614,1e-08,211.02,211.01,56.21772246]
[1756944180601,1e-08,211.02,211.01,61.00854582]
[1756944180912,1e-08,211.05,211.04,39.87991715]
[1756944181114,1e-08,211.05,211.04,40.44852973]
[1756944181317,1e-08,211.05,211.04,60.63852973]
[1756944181616,0.06,211.13,211.09,0.28432314]
[1756944181807,0.06,211.13,211.09,76.71991715]
[1756944182118,0.06,211.13,211.09,76.90991715]
[1756944182719,0.06,211.13,211.09,77.47839505]
[1756944182899,0.06,211.13,211.09,97.47839505]
[1756944183100,0.2,211.14,211.1,0.19]
[1756944183301,0.2,211.14,211.13,0.28432314]
[1756944183514,0.2,211.14,211.13,55.64633547]
[1756944185021,0.2,211.14,211.13,55.45633547]
[1756944186717,0.2,211.14,211.13,18.61633547]
[1756944186921,0.86,211.14,211.13,13.59559401]
[1756944187397,0.86,211.14,211.13,26.0]
[1756944187815,0.86,211.14,211.11,1.89766824]
[1756944188026,0.66,211.13,211.11,1.89766824]
[1756944188201,0.66,211.12,211.11,15.77758539]
[1756944188608,0.66,211.12,211.11,1.89766824]
[1756944188818,0.66,211.12,211.11,26.0]
[1756944189200,0.66,211.12,211.0,18.5249305]
[1756944189395,0.66,211.11,211.02,13.59559401]
[1756944189598,4.73641832,211.13,211.1,1.89829865]
[1756944189799,4.73641832,211.13,211.06,26.0]
[1756944190019,0.66,211.12,211.06,26.0]
[1756944190222,0.66,211.12,211.05,30.73641832]
[1756944190407,0.66,211.11,211.05,26.0]
[1756944190606,0.66,211.1,211.05,30.73641832]
[1756944190928,0.66,211.09,211.05,35.4745609]
[1756944191223,4.73641832,211.13,211.05,35.4745609]
[1756944191525,0.66,211.08,211.05,35.4745609]
[1756944191819,0.66,211.1,211.05,35.4745609]
[1756944192026,0.66,211.09,211.05,35.4745609]
[1756944192199,0.66,211.09,211.07,26.0]
[1756944192403,0.2,211.14,211.08,13.87991715]
[1756944192595,0.2,211.14,211.11,13.87991715]
[1756944192801,0.2,211.14,211.13,26.0]
[1756944193595,0.2,211.14,211.13,39.87991715]
[1756944194409,0.2,211.14,211.13,44.61633547]
[1756944195802,0.2,211.14,211.13,44.80633547]
[1756944196232,0.2,211.14,211.13,44.61633547]
[1756944198031,0.2,211.14,211.13,81.45633547]
[1756944198514,0.2,211.14,211.13,81.64633547]
[1756944198715,1e-08,211.14,211.13,101.64633547]
[1756944199717,1e-08,211.14,211.13,81.64633547]
[1756944199914,1e-08,211.14,211.13,102.21470566]
[1756944200118,1e-08,211.14,211.13,81.64633547]
[1756944200327,1e-08,211.14,211.13,82.21470566]
[1756944200620,1e-08,211.14,211.13,104.11219386]
[1756944200823,1e-08,211.14,211.13,103.54382367]
[1756944201026,1e-08,211.15,211.14,13.87991715]
[1756944201222,1e-08,211.15,211.14,14.63826042]
[1756944201606,0.06,211.19,211.14,14.63826042]
[1756944201805,0.06,211.19,211.17,39.87991715]
[1756944202036,0.06,211.19,211.18,50.69991715]
[1756944202814,0.72,211.19,211.18,13.87991715]
[1756944203130,0.72,211.19,211.18,38.71730819]
[1756944203325,0.72,211.19,211.18,36.82]
[1756944203529,0.72,211.19,211.18,26.0]
[1756944206616,0.72,211.19,211.14,4.73603619]
[1756944206819,0.66,211.18,211.15,36.82]
[1756944207127,0.66,211.18,211.16,13.87991715]
[1756944207324,0.06,211.19,211.17,62.82]
[1756944207510,0.66,211.18,211.17,62.82]
[1756944207934,0.06,211.19,211.18,13.87991715]
[1756944208348,0.06,211.19,211.18,18.61521405]
[1756944210525,0.06,211.19,211.18,55.47521405]
[1756944213545,0.06,211.19,211.18,18.61521405]
[1756944213751,0.06,211.19,211.18,55.45521405]
[1756944215118,0.06,211.19,211.18,18.61521405]
[1756944215322,0.06,211.19,211.18,55.43521405]
[1756944216553,0.06,211.19,211.18,20.51252225]
[1756944216727,0.06,211.19,211.18,55.41521405]
[1756944216928,0.06,211.19,211.18,18.61521405]
[1756944217133,0.06,211.19,211.18,55.41521405]
[1756944218433,0.06,211.22,211.21,39.87991715]
[1756944218630,0.06,211.24,211.22,13.59559401]
[1756944218833,0.06,211.24,211.23,36.82]
[1756944219946,0.06,211.24,211.23,41.55417601]
[1756944221354,0.06,211.24,211.23,55.43409316]
[1756944223050,0.06,211.24,211.23,18.61409316]
[1756944223232,0.06,211.24,211.23,55.39409316]
[1756944223431,1e-08,211.24,211.23,55.58409316]
[1756944223738,1e-08,211.24,211.23,76.15219428]
[1756944225244,0.66,211.31,211.26,26.0]
[1756944225429,0.66,211.31,211.23,111.6985144]
[1756944225430,0.66,211.31,211.3,26.0]
[1756944225638,0.66,211.31,211.3,62.86]
[1756944225841,0.66,211.31,211.3,67.59260766]
[1756944226160,4.93035663,211.41,211.34,26.0]
[1756944226345,4.93035663,211.41,211.34,62.86]
[1756944226546,0.66,211.35,211.34,62.86]
[1756944228756,0.66,211.35,211.34,26.0]
[1756944228932,0.66,211.35,211.33,36.84]
[1756944229262,0.66,211.34,211.33,36.84]
[1756944230364,0.66,211.34,211.29,4.73085148]
[1756944230545,4.93134655,211.36,211.3,50.41559401]
[1756944230546,0.66,211.33,211.3,50.41559401]
[1756944230750,0.66,211.32,211.3,50.41559401]
[1756944231066,0.66,211.31,211.3,55.43250124]
[1756944232961,0.66,211.33,211.3,55.43250124]
[1756944233270,0.66,211.32,211.3,18.61250124]
[1756944233449,0.66,211.31,211.3,18.61250124]
[1756944233657,0.66,211.31,211.3,55.41250124]
[1756944233970,0.66,211.34,211.3,55.41250124]
[1756944234168,0.06,211.35,211.33,26.0]
[1756944234766,0.66,211.34,211.33,26.0]
[1756944235782,0.66,211.34,211.3,13.87991715]
[1756944235783,0.66,211.34,211.3,26.0]
[1756944235974,0.06,211.35,211.29,1.89640868]
[1756944235975,0.66,211.33,211.29,1.89640868]
[1756944236182,0.66,211.32,211.29,1.89640868]
[1756944236382,0.66,211.31,211.26,62.84]
[1756944236588,0.66,211.3,211.27,4.73327968]
[1756944236788,0.66,211.29,211.28,26.0]
[1756944238988,0.66,211.29,211.28,30.73305566]
[1756944240672,0.66,211.33,211.3,0.28432314]
[1756944240880,0.66,211.33,211.31,13.59559401]
[1756944241296,0.06,211.35,211.32,36.84]
[1756944241488,0.06,211.35,211.32,13.87991715]
[1756944241489,0.66,211.34,211.32,13.87991715]
[1756944241674,0.66,211.33,211.32,13.87991715]
[1756944241879,0.66,211.33,211.31,36.84]
[1756944242179,0.66,211.32,211.31,50.71991715]
[1756944242479,0.72,211.35,211.33,4.73193583]
[1756944242678,0.06,211.35,211.33,4.73193583]
[1756944242881,0.06,211.35,211.33,30.73193583]
[1756944243090,0.06,211.35,211.34,26.0]
[1756944243606,0.72,211.35,211.34,26.0]
[1756944244511,0.06,211.35,211.34,39.87991715]
[1756944244894,0.06,211.35,211.34,44.61162908]
[1756944245406,0.06,211.35,211.34,81.45162908]
[1756944247216,0.72,211.35,211.34,36.84]
[1756944247387,0.72,211.35,211.33,62.84]
[1756944247708,0.66,211.34,211.33,26.0]
[1756944248701,0.06,211.35,211.33,26.0]
[1756944248903,0.66,211.34,211.33,26.0]
[1756944249527,0.06,211.35,211.33,26.0]
[1756944249814,0.72,211.35,211.33,30.73193583]
[1756944251120,0.06,211.35,211.33,26.0]
[1756944251294,0.66,211.34,211.3,44.32818649]
[1756944251500,0.66,211.34,211.32,13.59559401]
[1756944251805,0.06,211.35,211.32,13.59559401]
[1756944252122,0.06,211.35,211.34,39.87991715]
[1756944253206,0.06,211.35,211.34,44.61162908]
[1756944257919,0.73,211.35,211.34,50.69991715]
[1756944258324,0.73,211.35,211.34,36.82]
[1756944259715,0.06,211.35,211.34,36.82]
[1756944259926,0.06,211.35,211.34,55.43162908]
[1756944263122,0.06,211.35,211.34,57.32758832]
[1756944275551,0.73,211.35,211.34,57.32758832]
[1756944276046,0.06,211.35,211.34,57.32758832]
[1756944279555,0.06,211.35,211.23,43.67036342]
[1756944279556,0.73,211.35,211.27,4.73327968]
[1756944279757,0.67,211.34,211.28,50.33559401]
[1756944279937,0.67,211.33,211.28,76.33559401]
[1756944280131,0.67,211.32,211.28,76.33559401]
[1756944280331,0.67,211.31,211.3,39.87991715]
[1756944280543,0.67,211.31,211.3,26.0]
[1756944280833,0.67,211.31,211.3,76.61991715]
[1756944281038,0.67,211.31,211.3,50.61991715]
[1756944281826,0.06,211.35,211.31,13.87991715]
[1756944282029,0.76,211.35,211.33,13.87991715]
[1756944282249,0.76,211.35,211.34,36.74]
[1756944282446,0.76,211.35,211.34,50.61991715]
[1756944282447,0.06,211.35,211.34,50.61991715]
[1756944282857,0.76,211.35,211.34,50.61991715]
[1756944283031,0.76,211.35,211.34,13.87991715]
[1756944283451,0.76,211.35,211.34,50.61991715]
[1756944285958,0.76,211.35,211.34,13.87991715]
[1756944286257,0.76,211.35,211.34,50.61991715]
[1756944287636,0.06,211.35,211.34,50.61991715]
[1756944287952,0.76,211.35,211.34,50.61991715]
[1756944288558,0.76,211.35,211.34,50.33559401]
[1756944289046,0.76,211.35,211.34,50.61991715]
[1756944289359,0.76,211.35,211.33,26.0]
[1756944289537,0.7,211.34,211.33,39.87991715]
[1756944289739,0.06,211.35,211.33,76.61991715]
[1756944290054,0.76,211.35,211.33,76.61991715]
[1756944290741,0.76,211.35,211.33,81.35174737]
[1756944292058,0.76,211.35,211.34,36.74]
[1756944292962,0.76,211.35,211.33,39.59559401]
[1756944293263,0.76,211.35,211.34,36.74]
[1756944293562,0.7,211.34,211.33,39.87991715]
[1756944293735,0.06,211.35,211.34,13.87991715]
[1756944294153,0.76,211.35,211.34,13.87991715]
[1756944295454,0.76,211.35,211.34,50.61991715]
[1756944297472,0.76,211.35,211.34,55.35162908]
[1756944299074,0.76,211.35,211.34,50.61991715]
[1756944300856,0.06,211.35,211.34,55.35162908]
[1756944301355,0.76,211.35,211.34,55.35162908]
[1756944301751,0.76,211.35,211.34,50.61991715]
[1756944302059,0.76,211.35,211.34,13.87991715]
[1756944302265,0.76,211.35,211.34,50.61991715]
[1756944302474,0.76,211.35,211.34,13.87991715]
[1756944302975,0.76,211.35,211.34,50.61991715]
[1756944304167,0.76,211.35,211.34,13.87991715]
[1756944304368,0.06,211.35,211.34,55.35162908]
[1756944304869,0.06,211.35,211.34,55.54162908]
[1756944305687,0.06,211.35,211.34,57.43749846]
[1756944306366,0.06,211.35,211.34,57.24749846]
[1756944308373,0.06,211.35,211.34,135.84749846]
[1756944309279,0.06,211.35,211.34,136.03749846]
[1756944309481,0.06,211.35,211.34,135.84749846]
[1756944309870,0.06,211.35,211.34,136.03749846]
[1756944310760,0.06,211.35,211.34,135.84749846]
[1756944310959,0.06,211.35,211.34,136.03749846]
[1756944311170,0.06,211.35,211.34,135.84749846]
[1756944311585,0.76,211.35,211.34,92.19559401]
[1756944311775,0.76,211.35,211.34,129.21991715]
[1756944311968,0.76,211.35,211.34,92.47991715]
[1756944312166,0.76,211.35,211.34,129.21991715]
[1756944312370,0.06,211.35,211.34,133.95162908]
[1756944312569,0.06,211.35,211.34,135.84758831]
[1756944313178,0.74,211.35,211.34,159.95162908]
[1756944313481,0.06,211.35,211.34,159.95162908]
[1756944313889,0.74,211.35,211.34,159.95162908]
[1756944314272,0.74,211.35,211.34,81.35162908]
[1756944315086,0.06,211.35,211.34,81.35162908]
[1756944315691,0.74,211.35,211.34,81.35162908]
[1756944316892,0.74,211.35,211.34,44.61162908]
[1756944317086,0.74,211.35,211.34,81.35162908]
[1756944319185,0.74,211.35,211.34,78.51605614]
[1756944319570,0.74,211.35,211.34,83.24776807]
[1756944320286,0.74,211.35,211.34,41.77605614]
[1756944320595,0.74,211.35,211.34,1.89613899]
[1756944320807,0.74,211.35,211.34,38.63613899]
[1756944321169,0.74,211.35,211.34,1.89613899]
[1756944321484,0.74,211.35,211.34,38.63613899]
[1756944321785,0.74,211.35,211.28,0.19]
[1756944321786,0.74,211.35,211.23,11.83490743]
[1756944321988,5.47148805,211.35,211.26,13.59559401]
[1756944322193,0.68,211.34,211.31,1.89658851]
[1756944322379,0.68,211.33,211.31,1.89658851]
[1756944322692,0.68,211.32,211.31,1.89658851]
[1756944325095,0.68,211.32,211.31,27.89658851]
[1756944325798,0.68,211.34,211.31,32.62897221]
[1756944325977,0.68,211.34,211.32,13.87991715]
[1756944326594,0.68,211.34,211.33,1.89631877]
[1756944326985,0.68,211.34,211.33,15.77623592]
[1756944327184,0.68,211.34,211.33,52.51623592]
[1756944327386,0.06,211.35,211.34,13.87991715]
[1756944327694,0.06,211.35,211.34,18.61162908]
[1756944328195,0.06,211.35,211.34,20.50776807]
[1756944329600,0.74,211.35,211.34,57.24776807]
[1756944329976,0.06,211.35,211.34,57.24776807]
[1756944332799,0.06,211.35,211.34,20.50776807]
[1756944332999,0.74,211.35,211.34,15.77605614]
[1756944333205,0.06,211.35,211.34,15.77605614]
[1756944333400,0.06,211.35,211.34,58.0055735]
[1756944335405,0.06,211.35,211.34,57.8155735]
[1756944336403,0.06,211.35,211.34,58.0055735]
[1756944338911,0.06,211.35,211.34,57.8155735]
[1756944339119,0.06,211.35,211.34,58.0055735]
[1756944339323,1e-08,211.35,211.34,58.0055735]
[1756944339838,0.2,211.36,211.34,58.0055735]
[1756944340037,0.2,211.36,211.34,57.43776807]
[1756944340209,0.2,211.36,211.34,55.54162908]
[1756944340416,0.2,211.36,211.35,15.77551699]
[1756944340924,0.2,211.36,211.35,20.50700504]
[1756944347928,0.2,211.36,211.35,57.22700504]
[1756944349651,0.2,211.36,211.35,57.7947836]
[1756944351050,0.2,211.36,211.35,57.8247836]
[1756944352423,0.88,211.36,211.35,57.25700504]
[1756944352930,0.2,211.36,211.35,57.25700504]
[1756944358650,0.2,211.36,211.35,135.85700504]
[1756944360953,0.2,211.36,211.35,135.83700504]
[1756944366274,0.88,211.36,211.35,135.83700504]
[1756944369347,0.74,211.38,211.37,44.6109575]
[1756944369548,0.06,211.38,211.37,133.9109575]
[1756944369968,0.74,211.38,211.37,135.80646751]
[1756944374362,1e-08,211.38,211.37,135.80646751]
[1756944374978,0.71000001,211.38,211.37,135.80646751]
[1756944376587,0.03445408,211.51,211.42,13.87991715]
[1756944376752,0.03445408,211.51,211.45,26.0]
[1756944376954,0.03445408,211.51,211.46,36.7]
[1756944377158,0.03445408,211.51,211.46,50.91363087]
[1756944377568,0.03445408,211.51,211.46,36.7]
[1756944377774,0.03445408,211.51,211.47,14.21295748]
[1756944378477,0.71,211.5,211.47,18.94174681]
[1756944378771,0.71,211.49,211.47,18.94174681]
[1756944378975,0.71,211.48,211.47,18.94174681]
[1756944379179,0.71,211.48,211.46,4.72898205]
[1756944379476,0.71,211.47,211.46,9.45640084]
[1756944380649,0.71,211.47,211.46,4.72741879]
[1756944381268,0.71,211.47,211.46,9.45644555]
[1756944381472,0.71,211.47,211.46,4.72741879]
[1756944381772,0.71,211.47,211.45,26.0]
[1756944381977,0.71,211.46,211.45,30.72747003]
[1756944382274,0.71,211.46,211.45,35.45672044]
[1756944382849,0.71,211.46,211.45,49.33663759]
[1756944383457,0.71,211.46,211.45,9.45672044]
[1756944383755,0.71,211.46,211.45,4.72747003]
[1756944384155,0.71,211.46,211.41,13.59559401]
[1756944384475,0.71,211.45,211.41,13.59559401]
[1756944384678,0.71,211.44,211.41,13.59559401]
[1756944384879,0.71,211.43,211.41,13.59559401]
[1756944385085,0.71,211.42,211.41,18.61006236]
[1756944386981,0.71,211.42,211.41,4.76014521]
[1756944387501,5.43992148,211.42,211.38,0.03]
[1756944387790,0.71,211.42,211.38,0.03]
[1756944388176,3.54059997,211.41,211.38,0.03]
[1756944388364,0.71,211.42,211.38,0.03]
[1756944388565,4.73019931,211.41,211.38,0.03]
[1756944389070,0.7,211.4,211.38,0.03]
[1756944390790,5.43048143,211.4,211.38,0.03]
[1756944390962,3.53934063,211.39,211.38,0.03]
[1756944391163,5.43048143,211.4,211.38,0.03]
[1756944391364,4.23822143,211.39,211.38,0.03]
[1756944392791,8.96881417,211.39,211.38,0.03]
[1756944393174,45.64881417,211.39,211.38,0.03]
[1756944394272,26.0,211.36,211.35,0.03]